fUSD/lending_fUSD_20240326
["ID","MTS","AMOUNT","RATE_DAILY","PERIOD"]
[320527442,1711413033338,-191.09608859,0.00051954,29]
[320527443,1711413033347,-189.29498766,0.00051954,120]
[320527444,1711413033357,-151.78783388,0.00051954,52]
[320527445,1711413033368,-166.93340169,0.00051954,2]
[320527446,1711413033378,-741.81095873,0.00051954,49]
[320527447,1711413033388,-175.37399262,0.00051954,10]
[320527448,1711413033398,-200.0,0.00051961,30]
[320527449,1711413033408,-150.0,0.00051981,120]
[320527450,1711413033419,-205.05509724,0.00051997,4]
[320527451,1711413033428,-3322.97691401,0.00051998,4]
[320527452,1711413033438,-311.01623187,0.00051998,4]
[320527453,1711413033447,-202.89534804,0.00051998,4]
[320527454,1711413033456,-1326.69558531,0.00051998,2]
[320527455,1711413033466,-323.67135534,0.00051998,4]
[320527456,1711413033475,-301.63599966,0.00051998,4]
[320527457,1711413033485,-1000.0,0.00051999,120]
[320527458,1711413033495,-1331.62653315,0.00052,30]
[320527459,1711413033506,-220000.0,0.00052,7]
[320527460,1711413033516,-1238.47,0.00052,30]
[320527461,1711413033525,-1000.0,0.00052,120]
[320527462,1711413033534,-5300.0,0.00052,30]
[320527463,1711413033545,-157.032609,0.00052013,89]
[320527464,1711413033554,-203129.53202625,0.00052018,2]
[320527465,1711413033566,-698.945,0.00052018,2]
[320527466,1711413033578,-393.05366599,0.00052018,2]
[320527488,1711413037949,-150.99,0.00043856,2]
[320527490,1711413037959,-388.44622724,0.000509,2]
[320527492,1711413037968,-7500.0,0.00051953,3]
[320527494,1711413037977,-184.03549772,0.00051954,30]
[320527496,1711413037986,-166.53067801,0.00051997,2]
[320527498,1711413037996,-4694.99759703,0.00052017,30]
[320527504,1711413038051,-54.67175311,0.00052017,30]
[320527506,1711413038061,-1459.8714884,0.00052018,2]
[320527508,1711413038073,-262.122003,0.00052018,2]
[320527510,1711413038085,-443.82,0.00052018,2]
[320527526,1711413040037,-315.80721876,0.00051954,2]
[320527527,1711413040047,-105.12636355,0.00052017,120]
[320527528,1711413040104,-116.71588092,0.00052017,120]
[320527529,1711413040114,-308.507441,0.00052018,2]
[320527530,1711413040126,-3118.13932431,0.00052018,2]
[320527531,1711413040138,-719.19881747,0.00052018,2]
[320527534,1711413041779,-164.28334784,0.00051533,3]
[320527535,1711413041789,-249.23872846,0.00052018,2]
[320527536,1711413041894,-643.64,0.00052018,2]
[320527562,1711413042986,-388.44622716,0.00051122,2]
[320527564,1711413042996,-22687.96276582,0.00052018,2]
[320527566,1711413043006,-17787.15446801,0.00052018,2]
[320527737,1711413045456,-424.0,0.00051688,30]
[320527738,1711413045465,-14658.07520019,0.00052018,2]
[320527739,1711413045474,-151.032609,0.00052023,92]
[320527740,1711413045484,-151.032609,0.00052023,91]
[320527741,1711413045494,-151.032609,0.00052023,90]
[320527742,1711413045503,-157.032609,0.00052023,93]
[320527743,1711413045512,-151.032609,0.00052033,96]
[320527744,1711413045522,-151.032609,0.00052033,95]
[320527745,1711413045533,-151.032609,0.00052033,94]
[320527746,1711413045542,-150.99,0.00052033,10]
[320527747,1711413045551,-151.78783363,0.00052038,52]
[320527748,1711413045561,-151.032609,0.00052043,99]
[320527749,1711413045571,-151.032609,0.00052043,98]
[320527750,1711413045580,-151.032609,0.00052043,97]
[320527751,1711413045590,-166.53067801,0.0005205,2]
[320527752,1711413045603,-333.06135602,0.00052051,2]
[320527753,1711413045612,-892.02580912,0.00052052,30]
[320527754,1711413045621,-2200.94371913,0.00052052,4]
[320527755,1711413045630,-6475.75922732,0.00052052,4]
[320527756,1711413045640,-195.89413916,0.00052052,4]
[320527757,1711413045649,-445.24687033,0.00052052,4]
[320527758,1711413045659,-2164.86870334,0.00052052,4]
[320527759,1711413045668,-1236.48384141,0.00052052,4]
[320527760,1711413045678,-500.0,0.00052052,2]
[320527761,1711413045687,-341.06890186,0.00052052,4]
[320527762,1711413045697,-262.08020036,0.00052052,4]
[320527763,1711413045706,-403.80146906,0.00052052,4]
[320527764,1711413045715,-155.0,0.00052052,4]
[320527765,1711413045725,-245.86268023,0.00052052,4]
[320527766,1711413045735,-150.0,0.00052053,30]
[320527767,1711413045744,-150.0,0.00052053,30]
[320527768,1711413045753,-150.0,0.00052053,30]
[320527769,1711413045762,-150.0,0.00052053,30]
[320527770,1711413045772,-150.0,0.00052053,30]
[320527771,1711413045781,-150.0,0.00052053,30]
[320527773,1711413045790,-150.0,0.00052053,30]
[320527774,1711413045799,-150.0,0.00052053,30]
[320527776,1711413045809,-2033.19342647,0.00052053,4]
[320527777,1711413045818,-17330.38895019,0.00052053,4]
[320527778,1711413045827,-3647.0,0.00052053,4]
[320527779,1711413045837,-309.83851815,0.00052053,4]
[320527780,1711413045847,-156.60460892,0.00052053,2]
[320527781,1711413045856,-4107.71904512,0.00052053,2]
[320527782,1711413045893,-899.00226924,0.00052053,2]
[320527783,1711413045902,-134.13371876,0.00052053,101]
[320527791,1711413047181,-16.89889024,0.00052053,101]
[320527792,1711413047190,-151.032609,0.00052053,100]
[320527793,1711413047200,-151.032609,0.00052053,99]
[320527794,1711413047209,-755.78308143,0.00052053,120]
[320527795,1711413065111,210.11719045,0.00019,2]
[320527796,1711413065169,1340.18488758,0.00026,120]
[320527797,1711413263348,-1267.34631429,0.00022899,2]
[320527798,1711413263378,-157.84634742,0.000259,2]
[320527799,1711413287136,-3712.62202719,0.00026,10]
[320527800,1711413287231,-440.8318424,0.00026,2]
[320527801,1711413287258,-99075.53748373,0.00026,2]
[320527802,1711413315198,-3712.62202719,0.000259,10]
[320527803,1711413328025,210.3131,0.000259,2]
[320527804,1711413331259,3712.62202719,0.000259,10]
[320527805,1711413350500,275.40566275,0.000259,10]
[320527807,1711413736027,154.17930759,0.00019321,2]
[320527808,1711413740658,204.25219801,0.00022593,2]
[320527809,1711413833820,350.0,0.00023,3]
[320527810,1711413834963,400.0,0.00025,3]
[320527811,1711413939273,-450.0,0.00027,3]
[320527812,1711413939294,-158.55486244,0.000289,2]
[320527813,1711413939313,-486.82860234,0.00029,3]
[320527814,1711414031104,-13.17139766,0.00029,3]
[320527815,1711414031127,-166.01024403,0.00029848,2]
[320527816,1711414031148,-1882.2552,0.000299,3]
[320527817,1711414031169,-329.0788,0.000299,2]
[320527818,1711414031189,-150.0,0.00029999,2]
[320527819,1711414031211,-272.15868303,0.0003,4]
[320527820,1711414032639,-1516.74684091,0.0003,4]
[320527821,1711414041038,155.95132816,0.0002003,2]
[320527822,1711414041116,-2595.72957398,0.0003,4]
[320527823,1711414048244,152.97231096,0.00020314,2]
[320527824,1711414049101,166.01024403,0.00020044,2]
[320527825,1711414051107,-855.38278361,0.0003,4]
[320527826,1711414146455,-441.060283,0.000296,3]
[320527827,1711414149110,-250.939717,0.000296,3]
[320527828,1711414149133,-887.62643049,0.00029748,3]
[320527829,1711414155667,-370.26674286,0.00029748,3]
[320527830,1711414167244,-624.36202665,0.00029748,3]
[320527831,1711414167263,-208.1300602,0.000299,2]
[320527832,1711414167283,-159.84391114,0.000299,2]
[320527833,1711414167303,-619.24954337,0.0003,4]
[320527863,1711414232250,-158.55486244,0.000299,2]
[320527865,1711414232261,-461.63513756,0.0003,4]
[320527867,1711414232273,-2028.13820862,0.0003,4]
[320527874,1711414232328,-574.55846056,0.0003,4]
[320527876,1711414232338,-114.36017762,0.0003,2]
[320527879,1711414232382,-385.63982238,0.0003,2]
[320527880,1711414232392,-550.0,0.00031,3]
[320527881,1711414232402,-509.66458499,0.00031387,15]
[320527882,1711414232413,-155.95132816,0.00032054,7]
[320527883,1711414232423,-600.0,0.00033,3]
[320527884,1711414232432,-292.91,0.00034548,30]
[320527885,1711414232442,-150.0,0.00034548,10]
[320527886,1711414232452,-154.40070091,0.00034986,7]
[320527887,1711414232461,-150.99,0.00034986,2]
[320527888,1711414232470,-499.99,0.00034986,2]
[320527889,1711414232480,-650.0,0.00035,3]
[320527890,1711414232489,-155.95132818,0.0003934,7]
[320527891,1711414232498,-630.6813772,0.000399,120]
[320527892,1711414232532,-2144.97776523,0.000399,120]
[320527893,1711414232542,-165.24620697,0.00040622,30]
[320527894,1711414232552,-161.33,0.00043468,2]
[320527895,1711414232561,-367.17,0.00045067,2]
[320527896,1711414232571,-1461.28,0.00045354,120]
[320527897,1711414232580,-250.0,0.00045386,2]
[320527898,1711414232590,-174.58,0.00045445,120]
[320527899,1711414232604,-1382.69,0.00045778,45]
[320527900,1711414232614,-250.0,0.00045824,110]
[320527901,1711414232623,-123.70207471,0.00046046,120]
[320527902,1711414232636,-126.29792529,0.00046046,120]
[320527903,1711414232646,-165.6,0.00046234,2]
[320527904,1711414232656,-4418.47600709,0.00046463,2]
[320527906,1711414232680,-1075.43,0.00046463,2]
[320527939,1711414238335,-11230.16399291,0.00046463,2]
[320527940,1711414238345,-165.24620697,0.00046847,30]
[320527941,1711414238354,-165.6,0.00047037,2]
[320527942,1711414238364,-165.24620698,0.00047503,30]
[320527945,1711414238459,-161.33,0.00047769,2]
[320527947,1711414238469,-367.17,0.00047807,2]
[320527949,1711414238478,-165.6,0.0004784,2]
[320527950,1711414238487,-165.6,0.00048643,2]
[320527951,1711414238496,-418.74,0.00048791,2]
[320527952,1711414238505,-100000.0,0.00049,120]
[320527953,1711414238514,-186.8,0.00049164,120]
[320527954,1711414238523,-157.032608,0.00049188,47]
[320527955,1711414238532,-265.8,0.00049201,2]
[320527956,1711414238541,-1000.0,0.00049315,30]
[320527957,1711414238551,-151.032609,0.00049488,48]
[320527958,1711414238561,-635.6421,0.000497,2]
[320527959,1711414238572,-563.8,0.0004979,30]
[320527960,1711414238582,-151.78783363,0.00049793,43]
[320527961,1711414238593,-310.7569818,0.00049793,2]
[320527962,1711414238603,-1668.49182374,0.00049793,2]
[320527963,1711414238613,-155.33548792,0.00049793,26]
[320527964,1711414238624,-166.53067802,0.00049797,2]
[320527965,1711414238634,-151.032608,0.00049798,49]
[320527966,1711414238643,-1314.0,0.00049799,120]
[320527967,1711414238654,-725161.33437907,0.000498,31]
[320527973,1711414240372,-255.12762141,0.000498,31]
[320527974,1711414240384,-287.7,0.000498,31]
[320527975,1711414240494,-90505.67179412,0.000498,31]
[320527981,1711414243196,-339616.45191991,0.000498,31]
[320527982,1711414243314,-6062.51000163,0.000498,31]
[320527993,1711414243625,-11209.48,0.000498,31]
[320528010,1711414246550,-7064.2574,0.000498,31]
[320528011,1711414270134,60505.67179412,0.00018,2]
[320528012,1711414270160,398.09211398,0.00018,2]
[320528013,1711414270190,50000.0,0.00018,2]
[320528014,1711414270214,448.32,0.00018,2]
[320528015,1711414270237,370.4,0.00018,2]
[320528016,1711414270260,405.07892366,0.00018,2]
[320528017,1711414270283,480.46519341,0.00018,2]
[320528018,1711414270310,192000.0,0.00018,2]
[320528019,1711414270344,518547.63888912,0.00018,2]
[320528021,1711414736613,1363.60384234,0.00018,2]
[320528022,1711414760594,1363.60384234,0.00018,2]
[320528023,1711414784735,1055.35327218,0.00018,2]
[320528024,1711414846927,500.0,0.000137,2]
[320528025,1711414862945,1363.60384234,0.00018,2]
[320528026,1711414878613,527.67663609,0.00018,2]
[320528027,1711414926303,-16707.46142226,0.00021,2]
[320528028,1711414982815,945.64023921,0.00018,2]
[320528029,1711415118567,1319.1502039,0.00018,2]
[320528030,1711415118636,945.64023921,0.00018,2]
[320528031,1711415120603,654.66690212,0.00018,2]
[320528032,1711415123315,505.01630497,0.00018,2]
[320528033,1711415151262,-643.81349141,0.00021999,2]
[320528034,1711415151289,-4477.2428224,0.00022,2]
[320528035,1711415152122,-250.07892366,0.00024683,2]
[320528036,1711415152144,-152.54022357,0.00024684,2]
[320528037,1711415152163,-564.9476748,0.00024685,2]
[320528038,1711415230162,-184.54982495,0.00024584,2]
[320528039,1711415230182,-333.8585427,0.00024684,2]
[320528040,1711415232122,-366.89202122,0.00024684,2]
[320528041,1711415244983,160.09977715,0.00018871,2]
[320528042,1711415246097,-2163.05386114,0.00024583,2]
[320528043,1711415250492,-781.59369664,0.00024583,2]
[320528044,1711415250511,-303.30509136,0.00024683,2]
[320528045,1711415250532,-303.30509136,0.00024782,2]
[320528046,1711415250551,-303.30509136,0.00024782,2]
[320528047,1711415250572,-150.0,0.00024999,2]
[320528048,1711415250591,-3044.32575757,0.00024999,2]
[320528049,1711415250610,-780.60301793,0.00025,4]
[320528050,1711415252103,-1442.26972812,0.00025,4]
[320528051,1711415254107,-1196.23490198,0.00025,4]
[320528054,1711415351178,-300.0,0.00024582,2]
[320528055,1711415351199,-150.0,0.00024582,2]
[320528056,1711415351220,-65.60107118,0.00024583,2]
[320528057,1711415354227,-1357.84632063,0.00024583,2]
[320528058,1711415372107,-155.0,0.00024582,2]
[320528059,1711415372127,-2235.16631607,0.00024583,2]
[320528062,1711415432442,-155.0,0.00024582,2]
[320528063,1711415432452,-805.66565249,0.00024583,2]
[320528064,1711415432465,-493.68515,0.00024583,2]
[320528065,1711415432680,-201124.90880993,0.00024583,2]
[320528066,1711415432690,-818.0819112,0.000249,2]
[320528067,1711415432700,-4885.83861892,0.00025,4]
[320528068,1711415432710,-480.0,0.0002704,2]
[320528069,1711415432719,-210.0,0.0002704,2]
[320528070,1711415432729,-152.54022348,0.00027163,2]
[320528071,1711415432740,-153.12861841,0.00027421,2]
[320528072,1711415432749,-152.54022348,0.00029642,2]
[320528073,1711415432759,-200.0,0.000314,30]
[320528074,1711415432770,-155.0,0.00031409,2]
[320528075,1711415432780,-150.0,0.00031662,120]
[320528076,1711415432792,-499.99,0.00031662,2]
[320528077,1711415432804,-150.0,0.00031967,120]
[320528078,1711415432814,-152.54022348,0.00032121,2]
[320528079,1711415432824,-152.54022348,0.000346,2]
[320528080,1711415432834,-150.15001017,0.00034837,7]
[320528081,1711415432843,-152.54022348,0.00037079,2]
[320528083,1711415432853,-157.8299123,0.00038104,7]
[320528085,1711415432863,-1160.82,0.00039484,30]
[320528087,1711415432873,-152.54022348,0.00039559,2]
[320528089,1711415432882,-152.54022348,0.00042038,2]
[320528091,1711415432892,-152.54022348,0.00044517,2]
[320528093,1711415432901,-500.0,0.00045019,2]
[320528095,1711415432911,-200.0,0.00045047,2]
[320528097,1711415432920,-325.28,0.00045059,120]
[320528099,1711415432930,-349.23,0.000453,2]
[320528101,1711415432939,-641.78,0.00045487,2]
[320528103,1711415432949,-291.06,0.00045487,2]
[320528105,1711415432958,-250.0,0.00045638,120]
[320528107,1711415432967,-186.08,0.0004568,2]
[320528109,1711415432976,-250.0,0.00045817,110]
[320528110,1711415432986,-600.62,0.00045841,2]
[320528111,1711415432996,-1475.48,0.00045846,120]
[320528112,1711415433006,-200.0,0.0004586,2]
[320528113,1711415433019,-473.18,0.00045891,2]
[320528114,1711415433029,-158.96170254,0.00045967,30]
[320528115,1711415433038,-473.18,0.00046017,2]
[320528116,1711415433048,-473.18,0.00046143,2]
[320528117,1711415433058,-10984.58,0.00046169,2]
[320528118,1711415433067,-473.18,0.00046269,2]
[320528119,1711415433077,-473.18,0.00046394,2]
[320528120,1711415433088,-473.18,0.0004652,2]
[320528121,1711415433098,-511.38,0.00046644,2]
[320528122,1711415433107,-473.18,0.00046646,2]
[320528123,1711415433117,-10000.0,0.00046673,45]
[320528124,1711415433126,-473.18,0.00046772,2]
[320528125,1711415433135,-473.18,0.00046898,2]
[320528126,1711415433146,-152.54022348,0.00046996,2]
[320528127,1711415433156,-473.18,0.00047024,2]
[320528128,1711415433167,-473.18,0.0004715,2]
[320528129,1711415433176,-6882.73528849,0.00047209,2]
[320528130,1711415433788,-1324.60471151,0.00047209,2]
[320528131,1711415433798,-473.18,0.00047275,2]
[320528132,1711415433809,-23890.0,0.00047374,2]
[320528133,1711415433819,-250.0,0.00047377,120]
[320528134,1711415433831,-473.18,0.00047401,2]
[320528135,1711415433842,-473.18,0.00047527,2]
[320528136,1711415433851,-473.18,0.00047653,2]
[320528137,1711415433863,-156.38,0.00047688,2]
[320528138,1711415433872,-166.88,0.00047775,2]
[320528139,1711415433881,-473.18,0.00047779,2]
[320528140,1711415433891,-334.99,0.00047827,2]
[320528141,1711415433900,-580.18822255,0.00047844,4]
[320528142,1711415433910,-473.18,0.00047905,2]
[320528143,1711415433920,-186.08,0.00047944,2]
[320528144,1711415433928,-473.18,0.00048031,2]
[320528145,1711415433938,-473.18,0.00048157,2]
[320528146,1711415433948,-441.0592,0.00048247,20]
[320528147,1711415433957,-473.18,0.00048282,2]
[320528148,1711415433968,-186.8,0.00048814,120]
[320528149,1711415433978,-249.99402987,0.00049201,4]
[320528150,1711415433989,-511.38,0.00049384,2]
[320528151,1711415433999,-152.54022348,0.00049475,2]
[320528152,1711415434010,-157.66,0.0004958,2]
[320528153,1711415434021,-431.9221,0.00049599,2]
[320528154,1711415434030,-718.8533,0.000496,3]
[320528155,1711415434040,-902.04821259,0.000496,2]
[320528156,1711415434053,-300.0,0.000496,2]
[320528162,1711415440469,-681.62500065,0.000496,2]
[320528163,1711415440481,-3448.65558676,0.000496,2]
[320528164,1711415440491,-519.46075328,0.000496,2]
[320528165,1711415440504,-982.18188805,0.000496,2]
[320528166,1711415440514,-157.66,0.00049629,2]
[320528167,1711415440525,-157.66,0.00049679,2]
[320528168,1711415440534,-709.52248109,0.00049698,4]
[320528169,1711415440605,-129.36091469,0.00049698,4]
[320528170,1711415440614,-2443.33880773,0.00049698,40]
[320528171,1711415440625,-163.50416171,0.00049699,4]
[320528172,1711415440635,-500.0,0.00049699,30]
[320528173,1711415440645,-39732.9048,0.000497,2]
[320528174,1711415440655,-500.0,0.000497,2]
[320528175,1711415440666,-1000.0,0.000497,2]
[320528176,1711415440676,-16747.9400642,0.000497,2]
[320528177,1711415440774,-2858.35796587,0.000497,2]
[320528187,1711415443498,-1033.135988,0.000497,2]
[320528199,1711415444755,-0.68933502,0.000497,2]
[320528200,1711415444767,-699.98114557,0.000497,2]
[320528201,1711415444779,-986.58027279,0.000497,2]
[320528202,1711415444791,-1091.299998,0.000497,2]
[320528207,1711415446660,-202.20339424,0.00049699,4]
[320528208,1711415446670,-1544.3995219,0.000497,2]
[320528209,1711415446777,-1490.49833242,0.000497,2]
[320528210,1711415447001,-11217.41647623,0.000497,2]
[320528211,1711415447012,-2500.0,0.000497,2]
[320528212,1711415447021,-157.66,0.00049728,2]
[320528213,1711415447030,-157.66,0.00049778,2]
[320528214,1711415447041,-343.0245259,0.00049798,4]
[320528215,1711415447051,-1053.76796528,0.00049798,4]
[320528216,1711415447062,-4939.08593353,0.00049798,4]
[320528217,1711415447074,-1768.68783928,0.00049799,4]
[320528218,1711415447085,-2190.97119,0.00049799,48]
[320528219,1711415447098,-500.0,0.000498,7]
[320528220,1711415447110,-442.6263,0.000498,2]
[320528221,1711415447119,-87116.38845853,0.000498,2]
[320528222,1711415537778,155.47623042,0.00019625,2]
[320528223,1711415574988,-152.62922635,0.00022014,2]
[320528224,1711415575013,-236.21243831,0.00024897,2]
[320528225,1711415575038,-150.0,0.00024898,2]
[320528226,1711415575073,-16381.72947365,0.00024899,2]
[320528227,1711415836490,152.62922635,0.00020221,2]
[320528228,1711416013766,-643.81349141,0.00022988,2]
[320528229,1711416013794,-155.0,0.00022988,2]
[320528230,1711416013824,-406.08005128,0.00022989,2]
[320528231,1711416013854,-350.0,0.00023,3]
[320528285,1711416314261,3712.62202719,0.00023,10]
[320528286,1711416315018,1903.31381444,0.00023,2]
[320528288,1711416326223,259.88151511,0.00023,2]
[320528290,1711416330309,1160.75079696,0.00023,10]
[320528294,1711416344445,-223.90384949,0.00024,2]
[320528295,1711416344465,-155.0,0.00024896,2]
[320528296,1711416344484,-689.11317681,0.00024897,2]
[320528297,1711416344504,-152.62922635,0.00024899,2]
[320528298,1711416344525,-13.25958796,0.00025,3]
[320528307,1711416432173,-386.74041204,0.00025,3]
[320528308,1711416432196,-198.35839474,0.00027288,2]
[320528309,1711416432217,-155.0,0.00028999,2]
[320528310,1711416432237,-615.65464067,0.00029,2]
[320528311,1711416432258,-5994.61,0.0002924,2]
[320528312,1711416432278,-1059.77657191,0.000293,2]
[320528313,1711416432300,-150.0,0.00029599,2]
[320528314,1711416432320,-1536.72037196,0.000296,2]
[320528316,1711416435190,-152.62922635,0.00028157,2]
[320528317,1711416435213,-1199.04067494,0.000296,2]
[320528318,1711416435233,-434.24061612,0.000299,2]
[320528320,1711416442093,-152.62922635,0.00028348,2]
[320528321,1711416442114,-152.62922635,0.0002843,2]
[320528322,1711416442136,-152.62922635,0.0002908,2]
[320528323,1711416442156,-54.55938388,0.000299,2]
[320528324,1711416442176,-889.28666842,0.000299,4]
[320528325,1711416442196,-254.85,0.000299,2]
[320528326,1711416442216,-831.02382832,0.000299,2]
[320528327,1711416443086,-795.87488652,0.000299,2]
[320528328,1711416451107,-155.71416267,0.00024489,2]
[320528329,1711416451130,-200.19289238,0.00026836,2]
[320528330,1711416451153,-155.0,0.00027,2]
[320528331,1711416451175,-994.47128516,0.000299,2]
[320528332,1711416451198,-983.95978747,0.000299,20]
[320528340,1711416546106,-430.01600039,0.00025,2]
[320528347,1711416574533,-517.18389649,0.00025,2]
[320528351,1711416631628,-404.34669282,0.00025,2]
[320528352,1711416631770,-648.4534103,0.00025,2]
[320528353,1711416631780,-178.45371578,0.00025,2]
[320528354,1711416631789,-363.86001547,0.00025,2]
[320528355,1711416631799,-155.0,0.00026999,2]
[320528356,1711416631810,-393.6867656,0.00027,2]
[320528357,1711416631819,-188.79441785,0.000298,2]
[320528358,1711416631829,-150.0,0.00029899,2]
[320528359,1711416631839,-3833.18021253,0.000299,20]
[320528360,1711416631849,-366.61,0.000299,2]
[320528361,1711416631859,-499.99,0.000299,2]
[320528362,1711416631868,-521.06,0.000299,2]
[320528363,1711416631878,-3542.27,0.000299,2]
[320528364,1711416631888,-155.0,0.00029998,2]
[320528365,1711416631898,-403.93124846,0.00029998,2]
[320528366,1711416631907,-267.51861915,0.00029998,2]
[320528367,1711416631917,-235.58218585,0.00029998,2]
[320528368,1711416631927,-406.00588235,0.00029998,2]
[320528369,1711416631936,-643.66163897,0.00029998,2]
[320528370,1711416631946,-1446.23399185,0.00029998,30]
[320528371,1711416631956,-539.02700074,0.00029998,2]
[320528372,1711416631965,-163.46032352,0.00029999,2]
[320528373,1711416631975,-982.72775271,0.00029999,2]
[320528374,1711416631985,-256.69278013,0.00029999,2]
[320528375,1711416631994,-98392.37002332,0.0003,4]
[320528376,1711416632004,-152.18374798,0.00031423,2]
[320528377,1711416632013,-210.0,0.00032889,2]
[320528378,1711416632023,-152.62922635,0.0003345,7]
[320528379,1711416632033,-150.99,0.00035815,10]
[320528380,1711416632043,-999.99,0.00035815,2]
[320528381,1711416632053,-152.62922635,0.00036933,7]
[320528382,1711416632063,-188.79441783,0.00040614,2]
[320528383,1711416632073,-711.23,0.00041447,2]
[320528384,1711416632083,-641.47,0.00041683,2]
[320528385,1711416632093,-250.0,0.00041807,2]
[320528386,1711416632103,-403.9,0.0004191,45]
[320528387,1711416632112,-250.0,0.00041921,110]
[320528388,1711416632122,-353.34,0.00042084,2]
[320528389,1711416632132,-160.0,0.00042116,2]
[320528390,1711416632142,-174.72,0.00042226,120]
[320528391,1711416632151,-204.55,0.00042349,2]
[320528392,1711416632161,-151.23,0.00042698,10]
[320528393,1711416632171,-1229.56,0.00042698,2]
[320528394,1711416632181,-204.55,0.00042772,2]
[320528395,1711416632192,-243.88,0.00042897,2]
[320528396,1711416632201,-1019.44,0.00043768,2]
[320528397,1711416632210,-170.43,0.00043841,120]
[320528398,1711416632220,-641.47,0.00044423,2]
[320528399,1711416632229,-20227.76,0.00044869,2]
[320528400,1711416632239,-250.0,0.00045055,120]
[320528401,1711416632248,-243.88,0.00045161,2]
[320528402,1711416632257,-152.62922635,0.00045186,30]
[320528403,1711416632267,-152.0,0.00045349,3]
[320528404,1711416632276,-150.0,0.00045808,120]
[320528405,1711416632286,-641.47,0.00047162,2]
[320528406,1711416632296,-353.34,0.00047345,2]
[320528407,1711416632306,-152.62922635,0.00047354,30]
[320528408,1711416632317,-160.0,0.0004738,2]
[320528409,1711416632327,-243.88,0.00047425,2]
[320528410,1711416632337,-152.0,0.00048201,4]
[320528411,1711416632346,-152.6292264,0.00048593,30]
[320528412,1711416632363,-1012.0,0.000487,117]
[320528413,1711416632372,-320.16955397,0.000489,2]
[320528414,1711416632382,-1000.0,0.00049,30]
[320528415,1711416632392,-3000.0,0.00049,120]
[320528416,1711416632402,-2000.0,0.00049,120]
[320528417,1711416632412,-2000.0,0.00049,120]
[320528418,1711416632422,-2000.0,0.00049,120]
[320528419,1711416632431,-223.94,0.00049016,2]
[320528420,1711416632442,-150.0,0.00049134,2]
[320528421,1711416632451,-150.0,0.00049134,2]
[320528422,1711416632461,-150.0,0.00049134,2]
[320528423,1711416632470,-174.72,0.00049263,120]
[320528424,1711416632480,-6248.89223218,0.000493,120]
[320528425,1711416632489,-320.16955393,0.00049344,2]
[320528426,1711416632499,-6164.08351827,0.00049607,120]
[320528427,1711416632508,-6164.08351827,0.00049608,120]
[320528428,1711416632518,-68737.94551727,0.00049608,120]
[320528429,1711416632536,-2300.0,0.00049608,120]
[320528430,1711416632548,-11598.83452238,0.00049608,120]
[320528431,1711416632559,-208.90858084,0.00049608,120]
[320528432,1711416632568,-6164.08351827,0.00049608,120]
[320528433,1711416632577,-18389.16747955,0.00049609,120]
[320528434,1711416632590,-10468.8,0.00049609,120]
[320528435,1711416632602,-5741.75785207,0.00049609,120]
[320528436,1711416632677,-7526.18825408,0.00049609,120]
[320528452,1711416637828,-5003.47424158,0.00035,2]
[320528453,1711416637838,-1512.39927309,0.0004,30]
[320528454,1711416637848,-40510.86645395,0.00049609,120]
[320528455,1711416637857,-82636.78003965,0.00049611,120]
[320528456,1711416637866,-82636.78003965,0.00049616,120]
[320528457,1711416637876,-82636.78003965,0.0004962,120]
[320528458,1711416637885,-6164.08351827,0.00049621,120]
[320528459,1711416637894,-6164.08351827,0.00049621,120]